Cogmind - Beta 14 @@@ ROGUE MODE // 2025.03.13 @ 21:41:00 Player: TryingToLearn Result: Destroyed by as-32707 with Assembled Maul Performance ------------- Evolutions (0) 0 Regions Visited (4) 800 Robots Destroyed (23) 115 Value Destroyed (540) 540 Prototype IDs (0) 0 Alien Tech Used (0) 0 Bonus (300) 300 TOTAL SCORE: 1755 Bonus ------- Aligned with FarCom 300 Cogmind --------- Core Integrity 0/250 Matter 219/300 Energy 80/250 System Corruption 8% Temperature Cool (0) Movement Core (300) Ox5 Location -9/Mines Parts ------- > --- POWER (1) -------- Ion Engine > --- PROPULSION (2) --- (None) > --- UTILITY (2) ------ Small Storage Unit Visual Processing Unit > --- WEAPON (2) ------- Slug Cannon > --- INVENTORY (8) ---- Flight Unit Flight Unit Flight Unit Flight Unit Experimental Sensor Array 0b10 Alert Chip Peak State ------------ > --- POWER ------------ Light Nuclear Core > --- PROPULSION ------- Light Treads Compact Wheel > --- UTILITY ---------- Small Storage Unit Visual Processing Unit > --- WEAPON ----------- Assault Rifle Grenade Launcher > --- INVENTORY -------- Ion Engine Flight Unit Flight Unit Flight Unit Flight Unit Experimental Sensor Array 0b10 Alert Chip Slug Cannon [Rating: 12] Favorites ----------- Power Ion Engine Engine Ion Engine Power Core Light Nuclear Core Propulsion Light Treads Treads Light Treads Wheel Compact Wheel Utility Small Storage Unit Storage Small Storage Unit Processor Visual Processing Unit Weapon Assault Rifle Energy Gun Small Laser Ballistic Gun Assault Rifle Ballistic Cannon Slug Cannon Launcher Grenade Launcher Build | -11 -10 -10 -10 -9 ------- Run | Yrd Mat Min Exi Min Slots Evolved . | . . . . . Power . | . . . . . Propulsion . | . . . . . Utility . | . . . . . Weapon . | . . . . . Parts Attached 17 | 6 6 2 1 2 Power 4 | 1 1 1 . 1 Engine 3 | 1 1 . . 1 Core 1 | . . 1 . . Reactor . | . . . . . Propulsion 3 | 2 . . 1 . Treads 2 | 2 . . . . Leg . | . . . . . Wheel 1 | . . . 1 . Hover . | . . . . . Flight . | . . . . . Utility 2 | 1 1 . . . Device . | . . . . . Storage 1 | 1 . . . . Processor 1 | . 1 . . . Hackware . | . . . . . Protection . | . . . . . Artifact . | . . . . . Weapon 8 | 2 4 1 . 1 Energy Gun 1 | 1 . . . . Energy Cannon . | . . . . . Ballistic Gun 4 | 1 3 . . . Ballistic Cannon 1 | . . . . 1 Launcher 2 | . 1 1 . . Special Weapon . | . . . . . Impact Weapon . | . . . . . Slashing Weapon . | . . . . . Piercing Weapon . | . . . . . Special Melee Weapon . | . . . . . Unidentified Prototypes . | . . . . . Parts Lost 4 | . . . . 4 Power 1 | . . . . 1 Propulsion 1 | . . . . 1 Utility . | . . . . . Weapon 2 | . . . . 2 Highest Loss Streak 4 | . . . . 4 To Critical Strikes . | . . . . . Average Slot Usage (%) 97 | . 94 100 100 90 Engine 8 | . 14 8 . 2 Core 5 | . . 5 14 11 Treads 26 | . 28 28 22 11 Wheel 1 | . . . 5 11 Storage 14 | . 14 14 14 14 Processor 12 | . 8 14 14 14 Ballistic Gun 18 | . 26 16 14 11 Launcher 8 | . . 11 14 11 Peak Build Rating 12 | 6 8 11 12 12 Average Rating 8 | 5 7 9 11 11 On Entrance 7 | . 6 8 11 12 Naked Turns . | . . . . . Heaviest Build 15 | 12 15 15 15 15 Greatest Support 40 | 40 40 40 40 16 Greatest Overweight (x) . | . . . . . Average Overweight (x) . | . . . . . Largest Inventory Capacity 8 | 8 8 8 8 8 Average Capacity 7 | 7 8 8 8 8 Most Carried 8 | 5 8 8 8 8 Average Carried 7 | 2 7 7 7 7 Final Capacity 8 | 8 8 8 8 8 Final Carried 8 | 5 8 8 8 6 Class Distribution -------------------- 100% | Mutant Dominant Class ---------------- Mutant | -10/Materials Mutant | -10/Mines Mutant | -10/Exiles Mutant | -9/Mines Resources | -11 -10 -10 -10 -9 ----------- Run | Yrd Mat Min Exi Min Matter Collected 655 | 213 335 107 . . Remotely . | . . . . . Salvage Created 595 | . 423 163 . 9 Parts 54 | . 33 19 . 2 Haulers Intercepted 1 | . 1 . . . Recyclers Shooed . | . . . . . Parts Field Recycled . | . . . . . Retrieved Matter . | . . . . . Parts Self-Destructed . | . . . . . Prevented . | . . . . . Kills | -11 -10 -10 -10 -9 ------- Run | Yrd Mat Min Exi Min Combat Hostiles Destroyed 18 | . 9 7 . 2 Guns 10 | . 9 1 . . AOE 8 | . . 6 . 2 Classes Destroyed 7 | . 5 1 . 1 Worker 2 | . 2 . . . Builder 1 | . . 1 . . Hauler 1 | . 1 . . . Watcher 2 | . 2 . . . Swarmer 7 | . 3 3 . 1 Grunt 10 | . 6 4 . . Assembled 1 | . . . . 1 Best Kill Streak 6 | . 6 3 . 1 Combat Bots Only 4 | . 4 3 . 1 Max Kills in Single Turn 3 | . 1 3 . 1 Gunslinging . | . . . . . Exploded 2 | . . 2 . 1 Melee . | . . . . . Uniques/NPCs Destroyed . | . . . . . Combat | -11 -10 -10 -10 -9 -------- Run | Yrd Mat Min Exi Min Hostile Shots Fired 82 | . 48 13 . 21 Missed 22 | . 12 6 . 4 Damage Taken 976 | . 385 95 . 496 Core 250 | . 77 9 . 164 Absorbed by Shields . | . . . . . Core Remaining (%) 100 | 100 . . . . Volleys Fired 54 | . 38 9 . 7 Largest 2 | . 2 2 . 2 Hottest 50 | . 40 50 . 50 Shots Fired 103 | . 76 15 . 12 Gun 92 | . 76 9 . 7 Cannon . | . . . . . Launcher 11 | . . 6 . 5 Special . | . . . . . Kinetic 92 | . 76 9 . 7 Thermal . | . . . . . Explosive 11 | . . 6 . 5 Electromagnetic . | . . . . . Robot Hit Streak 7 | . 7 6 . 3 Robot Miss Streak 5 | . 5 3 . 4 Penetration Max . | . . . . . Secondary Targets 1 | . 1 . . . Max Gunslinging Chain 1 | . 1 . . . Shots Hit Robots 57 | . 48 6 . 3 Core Hits 40 | . 22 12 . 6 Critical Kills . | . . . . . Critical Parts Destroyed 2 | . 2 . . . Critical Strikes 2 | . 2 . . . Destroy 2 | . 2 . . . Melee Attacks . | . . . . . Impact . | . . . . . Slashing . | . . . . . Piercing . | . . . . . Sneak Attacks . | . . . . . Combat Hostiles . | . . . . . Follow-up Attacks . | . . . . . Damage Inflicted 1236 | . 643 438 . 155 Guns 716 | . 643 45 . 28 Cannons . | . . . . . Explosions 520 | . . 393 . 127 Melee . | . . . . . Ramming . | . . . . . Kinetic 716 | . 643 45 . 28 Thermal 54 | . . 54 . . Explosive 466 | . . 339 . 127 Electromagnetic . | . . . . . Impact . | . . . . . Slashing . | . . . . . Piercing . | . . . . . Highest Corruption 8 | . . . . 8 Average Corruption 5 | . . . . 5 Corruption Purged . | . . . . . Corruption Blocked . | . . . . . Effects 3 | . . . . 3 Message Errors 1 | . . . . 1 Weapon Failures 2 | . . . . 2 Overload Shots . | . . . . . Overflow Damage 5 | . . . . 5 Projectiles . | . . . . . Explosions 5 | . . . . 5 Melee . | . . . . . Knockbacks . | . . . . . Impact . | . . . . . Kinetic . | . . . . . Secondary . | . . . . . Self-Inflicted Damage 101 | . . 24 . 77 Shots 3 | . . 1 . 2 Rammed . | . . . . . Targets Rammed . | . . . . . Kicked . | . . . . . Crushed . | . . . . . Highest Temperature 5 | . 2 5 . . Average Temperature 2 | . 2 3 . . Received Heat Transfer 174 | . 153 21 . . Siege Activations . | . . . . . Robots Corrupted . | . . . . . Combat Hostiles . | . . . . . Parts Fried . | . . . . . Impact Corruptions . | . . . . . Robots Melted . | . . . . . Combat Hostiles . | . . . . . Parts Melted . | . . . . . Heat Transferred 50 | . . 50 . . Parts Sabotaged . | . . . . . Parts Stolen . | . . . . . Parts Stripped . | . . . . . Power Chain Reactions . | . . . . . Alert | -11 -10 -10 -10 -9 ------- Run | Yrd Mat Min Exi Min Peak Influence 267 | . 241 267 . 63 Initial 43 | . . 43 . . Average 122 | . 121 144 . 26 Maximum Alert Level 1 | . 1 1 . . Low Security (%) 76 | 100 72 75 . 100 Level 1 23 | . 27 24 . . Level 2 . | . . . . . Level 3 . | . . . . . Level 4 . | . . . . . Level 5 . | . . . . . High Security . | . . . . . Max Security . | . . . . . Squads Dispatched 2 | . 2 . . . Investigation . | . . . . . Extermination . | . . . . . Reinforcement 2 | . 2 . . . Assault . | . . . . . Garrison . | . . . . . Intercept . | . . . . . Searches Triggered . | . . . . . Construction Impeded . | . . . . . Haulers Reinforced . | . . . . . Active Scanning Responses . | . . . . . Cargo Convoy Interrupts . | . . . . . Stealth | -11 -10 -10 -10 -9 --------- Run | Yrd Mat Min Exi Min Distress Signals 2 | . 2 . . . Communications Jammed . | . . . . . Distress Signals . | . . . . . Times Spotted 34 | . 17 7 . 10 Peak Tracking Total 10 | . 6 3 . 10 Tactical Retreats 2 | . 1 . . 1 Traps | -11 -10 -10 -10 -9 ------- Run | Yrd Mat Min Exi Min Traps Triggered . | . . . . . Indirectly . | . . . . . Trap Hack Attempts . | . . . . . Triggered . | . . . . . Disarmed . | . . . . . Reprogrammed . | . . . . . Reused . | . . . . . Traps Extracted . | . . . . . Installed . | . . . . . Triggered . | . . . . . Machines | -11 -10 -10 -10 -9 ---------- Run | Yrd Mat Min Exi Min Machines Disabled 5 | . . 5 . . Max in Single Turn 5 | . . 5 . . Machines Repaired . | . . . . . Machines Dismantled . | . . . . . Machines Sabotaged . | . . . . . Overloaded Fab Kills . | . . . . . Hacking | -11 -10 -10 -10 -9 --------- Run | Yrd Mat Min Exi Min Machines Accessed 1 | . 1 . . . Terminals 1 | . 1 . . . Fabricators . | . . . . . Repair Stations . | . . . . . Recycling Units . | . . . . . Scanalyzers . | . . . . . Garrison Access . | . . . . . Total Hacks 1 | . 1 . . . Successful . | . . . . . Failed 1 | . 1 . . . Catastrophic 1 | . 1 . . . Database Lockouts . | . . . . . Manual 2 | . 1 . 1 . Terminals 1 | . 1 . . . Fabricators . | . . . . . Repair Stations . | . . . . . Recycling Units . | . . . . . Scanalyzers . | . . . . . Garrison Access . | . . . . . Terminal Hacks . | . . . . . Fabricator Hacks . | . . . . . Repair Station Hacks . | . . . . . Recycling Unit Hacks . | . . . . . Scanalyzer . | . . . . . Garrison Access Hacks . | . . . . . Unauthorized Hacks . | . . . . . Terminals . | . . . . . Fabricators . | . . . . . Repair Stations . | . . . . . Recycling Units . | . . . . . Scanalyzers . | . . . . . Garrison Access . | . . . . . Data Cores Recovered . | . . . . . Used . | . . . . . Hacking Detections 1 | . 1 . . . Full Trace Events . | . . . . . Feedback Events . | . . . . . Feedback Blocked . | . . . . . Robot Schematics Acquired . | . . . . . Robots Built . | . . . . . Authchips . | . . . . . Time . | . . . . . Total Robot Build Rating . | . . . . . Part Schematics Acquired . | . . . . . Parts Built . | . . . . . Authchips . | . . . . . Time . | . . . . . Total Part Build Rating . | . . . . . Parts Repaired . | . . . . . Time . | . . . . . Parts Recycled . | . . . . . Recycled Matter . | . . . . . Retrieved Matter . | . . . . . Retrieved Components . | . . . . . Parts Scanalyzed . | . . . . . Part Schematics Acquired . | . . . . . Parts Damaged . | . . . . . Bothacking | -11 -10 -10 -10 -9 ------------ Run | Yrd Mat Min Exi Min Used RIF Installer . | . . . . . Robots Hacked . | . . . . . Non-combat . | . . . . . Combat . | . . . . . Robot Hacks Applied . | . . . . . Relay Couplers Released . | . . . . . Fabnet Peak Effective % . | . . . . . Robots Rewired . | . . . . . Allies Hacked . | . . . . . Hacks Repelled . | . . . . . Allies | -11 -10 -10 -10 -9 -------- Run | Yrd Mat Min Exi Min Total Allies . | . . . . . Largest Group . | . . . . . Highest-Rated Group . | . . . . . Highest-Rated Ally . | . . . . . Total Orders . | . . . . . Ally Attacks . | . . . . . Total Damage . | . . . . . Kills . | . . . . . Allies Corrupted . | . . . . . Allies Melted . | . . . . . Intel | -11 -10 -10 -10 -9 ------- Run | Yrd Mat Min Exi Min Robot Analysis Total . | . . . . . Derelict Logs Recovered 1 | . . 1 . . Drone Launches . | . . . . . Drone Recoveries . | . . . . . Exploration | -11 -10 -10 -10 -9 ------------- Run | Yrd Mat Min Exi Min Turns Passed 1760 | 94 480 801 325 60 Spaces Moved 1002 | 57 193 474 245 33 Core 9 | 9 . . . . Treads 845 | 48 193 474 130 . Legs . | . . . . . Wheels 148 | . . . 115 33 Hover . | . . . . . Flight . | . . . . . Fastest Speed 50 | 50 160 160 100 100 Average Speed 150 | 142 160 160 131 100 Slowest Speed 160 | 160 160 160 160 100 Overloaded Moves . | . . . . . Propulsion Burnouts . | . . . . . Robots Hopped . | . . . . . Cave-ins Triggered . | . . . . . Exploration Rate (%) 40 | 3 26 91 64 17 Regions Visited 4 Branch Regions 3 Pre-discovered Areas 1 | . . 1 . . Known Exits Taken . | . . . . . Unknown Exits Taken 4 | 1 1 1 1 . Scrap Searched 1 | . . 1 . . Spaces Dug . | . . . . . Terrain Destroyed 88 | . . 48 . 40 Melee . | . . . . . Projectile . | . . . . . AOE 88 | . . 48 . 40 Terrain Rammed . | . . . . . Walls Destroyed . | . . . . . Machines Disabled . | . . . . . Actions | -11 -10 -10 -10 -9 --------- Run | Yrd Mat Min Exi Min Total 1154 | 67 290 504 247 46 Wait 52 | . 40 8 . 4 Move 998 | 56 192 473 244 33 Hop . | . . . . . Pick Up 17 | 5 6 5 1 . Fast Attach 10 | 6 3 1 . . Attach 3 | . . . 1 2 Detach 2 | . 1 1 . . Swap 4 | . 3 1 . . Drop 14 | . 7 6 1 . Fire 54 | . 38 9 . 7 Melee . | . . . . . Ram . | . . . . . Kick . | . . . . . Crush . | . . . . . Escape Stasis . | . . . . . Rewire . | . . . . . Trap . | . . . . . Miscellaneous . | . . . . . Route ------- -11/Scrapyard -10/Materials -10/Mines (discovered 3 exits: [*Mat x2] / *Exi) -10/Exiles (discovered 2 exits: [*Min x2]) -9/Mines History --------- Turn | Location | Event 2 | -11/Scrapyard | Discovered new exit (range 16) 95 | -11/Scrapyard | Entered Materials 290 | -10/Materials | Discovered new exit (range 18) 314 | -10/Materials | Build established: Mutant 575 | -10/Materials | Entered Mines 617 | -10/Mines | Learned Materials trap positions 770 | -10/Mines | Discovered new exit (range 7) 827 | -10/Mines | Discovered new exit (range 7) 938 | -10/Mines | A weapon hastily lodged in a ceiling crevice suddenly fell to the ground 1159 | -10/Mines | Found a damaged Exp. Sensor Array with a note attached 1163 | -10/Mines | Found Prototype Device 1204 | -10/Mines | Learned location of Storage (-7) 1366 | -10/Mines | Deemed a non-threat by the Exiles lab entrance 1368 | -10/Mines | Discovered new exit (range 5) 1376 | -10/Mines | Entered Exiles 1397 | -10/Exiles | Discovered new exit (range 17) 1413 | -10/Exiles | Met 8R-AWN 1442 | -10/Exiles | Met EX-HEX 1487 | -10/Exiles | Met EX-BIN 1511 | -10/Exiles | Aligned with FarCom system 1512 | -10/Exiles | Given EX-Vault access code 1552 | -10/Exiles | Opened EX-Vault 1586 | -10/Exiles | Found Prototype Processor 1607 | -10/Exiles | Warned to stay clear of 0b10 Research branches 1633 | -10/Exiles | Met EX-DEC 1688 | -10/Exiles | Discovered new exit (range 14) 1701 | -10/Exiles | Left Exiles lab with 0b10 Alert Chip 1701 | -10/Exiles | Entered Mines 1711 | -9/Mines | Assembled infested the area 1716 | -9/Mines | Assisted by a Guerilla fighting off Assembled 1751 | -9/Mines | Core integrity fell below 50% 1758 | -9/Mines | Core integrity fell below 20% 1761 | -9/Mines | Destroyed by as-32707 with Assembled Maul Last Messages --------------- tracking a group of Assembled to figure out where they're coming from, and they're closing on this area, come on!" 01720_ S-10 Pest destroyed. 01745_ The unstable cave ceiling collapses. 01750_ Com. Wheel destroyed. 01750_ System corrupted by crushing effect (+3). 01750_ Knocked back. 01750_ System corrupted: Grenade Launcher failed to launch. 01755_ Lgt. Treads severed. 01755_ Lgt. Nuclear Core destroyed. 01755_ System corrupted by crushing effect (+5). 01756_ HV Slug penetrates as-36485. 01756_ as-36485 suffers critical hit (Destroy). 01756_ as-36485 destroyed. 01756_ Grenade Launcher destroyed. 01756_ Destroyed Grenade Launcher. 01756_ as-69013 destroyed. 01757_ Assault Rifle destroyed. 01759_ VDFSJDNSYTKFR1HVM 01760_ The unstable cave ceiling collapses. Map ----- +----------------------------------------------------+ | ?????????????????????????????????????????????????? | | ?????????????????????????????????????????????????? | | ?????????????????????????????????????????????????? | | ?????????????????????????????????????????????????? | | ?????????????????????????????????????????????????? | | ?????????????????????????????????????????????????? | | ?????????????????????????????????????????????????? | | ?????????????????????????????????????????????????? | | ?????????????????????????????????????????????????? | | ?????????????????????????????????????????????????? | | ?????????????????????????????????????????????????? | | ?????????????????????????????????????????????????? | | ?????????????????????????????????????????????????? | | ?????????????????????????????????????????????????? | | ?????????????????????????????????????????????????? | | ?????????????????????????????????????????????????? | | ?????????????????????????????????????????????????? | | ?????????????????????????????????????????????????? | | ?????????????????????????????????????????????????? | | ?????????????????????????????????????????????????? | | ?????????????????????????????????????????????????? | | ?????????????????????????########????????????????? | | ??????????????????????#### # ####?????????????? | | ??????????????????????# #####?????????? | | ??????????????????????# %a # ##????????? | | ??????????????????????# @ ## #????????? | | ??????????????????????# a# ###[ ##???????? | | ??????????????????????# ## = ##??????? | | ??????????????????????# ## ##?????? | | ??????????????????????# # #?????? | | ??????????????????????## # #?????? | | ???????????????????????# ##### ##?????? | | ??????????????????????? [ #####???# ##??????? | | ???????????????????????#a ##???????# ##??????? | | ???????????????????????;;##????????# ##??#### | | ???????????????????????#%??????????## #?## # | | ???????????????????????%%???????????# #?# | | ???????????????????????#%???????????# ##?# | | ???????????????????????#;??????????## #### | | ???????????????????????##?????????## """ ## | | ??????????????????????????????????# """ | | ????????????????????????????? """ | | ???????????????????????????????### | | ?????????????????????????????????# | | ?????????????????????????????????## ## | | ??????????????????????????????????######### | | ??????????????????????????????????????????## | | ???????????????????????????????????????????# | | ???????????????????????????????????????????# # | | ???????????????????????????????????????????####### | +----------------------------------------------------+ Best States ------------- Heat Dissipation 25 Energy Generation 14 Energy Capacity 250 Matter Stores 300 Matter Capacity 300 Sight Range 18 Terrain Scan Density 10 Evasion (%) 40 Recoil Reduction 2 Item Schematics ----------------- None Robot Schematics ------------------ None Fabricated ------------ Nothing Alien Tech Used ----------------- None Achievements -------------- None Challenges ------------ None Game ------ Seed CooledControlDerivative Manual? 0 Play Time 00:15:31 Cumulative 34.4 hours Start 2025.03.11 @ 20:31:59 End 2025.03.13 @ 21:41:00 Sessions 3 Manual Loads 0 Difficulty Rogue Special Mode None Game No. 30 Rogue 30 Adventurer 0 Explorer 0 Win Type - Total 0 Types 0/0/0/0/0/0/0/0/0 Lore% 12 Gallery% 35 Achievement% 26 Wizard Run 0 Options --------- Layout 0 ASCII 0 Keyboard 1 Movement Numpad Keybinds 0 Fullscreen 0 Font 16/SmallcapsGlow Map View 88x55 Zoom Use 0% Tactical HUD 1 Map Filters NONE Filters NONE Steam 1 RUN: 14b39d0b-7f7e-4fb0-9394-1139b7f64f86